bitfinex/quotes_SOLUSD_20240822
["timestamp","ask_amount","ask_price","bid_price","bid_amount"]
[1724342847364,0.3483161,143.34,143.27,45.0]
[1724342847534,7.3247161,143.34,143.28,20.0]
[1724342847960,0.3483161,143.34,143.28,20.0]
[1724342848171,0.3483161,143.34,143.29,98.02098]
[1724342848468,0.3483161,143.34,143.3,20.0]
[1724342848839,0.3483161,143.34,143.31,1.39536895]
[1724342849168,0.3483161,143.34,143.3,20.0]
[1724342849842,0.3483161,143.34,143.28,1.59527797]
[1724342850360,0.3483161,143.34,143.29,1.39550355]
[1724342850754,0.3483161,143.34,143.28,21.59527797]
[1724342850963,0.3483161,143.34,143.28,22.99078289]
[1724342851257,0.3483161,143.34,143.28,21.59527797]
[1724342851657,0.3483161,143.34,143.29,1.39557288]
[1724342851973,0.3483161,143.34,143.29,42.20885424]
[1724342852133,0.3483161,143.34,143.3,20.0]
[1724342852559,0.3483161,143.34,143.28,1.59527797]
[1724342852560,6.9769,143.33,143.28,1.59527797]
[1724342852745,39.7469,143.33,143.28,1.59527797]
[1724342853062,39.7469,143.33,143.23,61.9104002]
[1724342853652,6.9775,143.32,143.23,29.1404002]
[1724342855047,6.9775,143.32,143.24,20.0]
[1724342855263,32.77,143.31,143.24,20.0]
[1724342855777,32.77,143.29,143.24,20.0]
[1724342856279,32.77,143.29,143.22,20.0]
[1724342856841,32.77,143.31,143.23,20.0]
[1724342857072,32.77,143.31,143.24,20.0]
[1724342857646,39.7479,143.31,143.24,20.0]
[1724342857868,32.77,143.29,143.22,20.12549]
[1724342858860,6.9793,143.28,143.2,20.0]
[1724342859062,39.097,143.27,143.2,20.0]
[1724342860587,46.0768,143.27,143.2,20.0]
[1724342860883,46.0768,143.27,143.19,40.0]
[1724342861068,39.097,143.27,143.19,40.0]
[1724342862559,39.097,143.27,143.2,45.0]
[1724342862751,39.097,143.27,143.21,20.0]
[1724342863774,46.0769,143.27,143.21,20.0]
[1724342864075,46.0769,143.27,143.18,20.12549]
[1724342864386,46.0769,143.27,143.19,45.0]
[1724342864600,46.0769,143.27,143.2,20.0]
[1724342864889,46.0769,143.27,143.18,20.12549]
[1724342865251,46.0769,143.27,143.19,20.0]
[1724342865486,6.327,143.27,143.2,45.0]
[1724342865691,6.327,143.27,143.21,20.12549]
[1724342866872,39.097,143.27,143.21,20.0]
[1724342867158,32.77,143.25,143.21,20.0]
[1724342867368,32.77,143.25,143.18,20.0]
[1724342867783,13.3068,143.27,143.18,20.0]
[1724342867976,32.77,143.26,143.18,20.0]
[1724342868995,32.77,143.24,143.18,20.0]
[1724342869172,32.77,143.24,143.17,20.12549]
[1724342869496,32.77,143.24,143.18,45.0]
[1724342869793,32.77,143.24,143.19,20.0]
[1724342870404,39.7504,143.26,143.19,20.0]
[1724342870695,32.77,143.26,143.19,20.0]
[1724342871195,39.7503,143.26,143.19,20.0]
[1724342871498,39.7503,143.26,143.19,11.90747073]
[1724342872284,39.7503,143.26,143.15,20.0]
[1724342872285,6.9808,143.25,143.15,20.0]
[1724342872624,32.77,143.24,143.15,20.0]
[1724342873091,39.7513,143.24,143.14,7.29045766]
[1724342873614,39.7513,143.24,143.15,20.0]
[1724342873795,39.7513,143.24,143.16,45.0]
[1724342874207,39.7513,143.24,143.17,20.0]
[1724342874505,39.7513,143.24,143.16,20.0]
[1724342875205,6.1753,143.23,143.16,20.0]
[1724342875407,32.77,143.22,143.16,20.0]
[1724342875784,32.77,143.22,143.14,20.12549]
[1724342876088,6.1753,143.23,143.15,20.25098]
[1724342876305,6.1753,143.23,143.16,65.0]
[1724342878575,6.1753,143.23,143.17,0.12549]
[1724342879193,6.1753,143.23,143.16,65.0]
[1724342882109,6.1753,143.23,143.17,0.12549]
[1724342883611,6.6357,143.27,143.18,20.0]
[1724342883776,6.6357,143.27,143.19,65.25098]
[1724342884710,46.3855,143.27,143.19,20.0]
[1724342885012,32.77,143.25,143.19,20.0]
[1724342885215,32.77,143.25,143.16,20.0]
[1724342885216,32.77,143.25,143.17,20.0]
[1724342885883,32.77,143.23,143.17,20.0]
[1724342886083,32.77,143.23,143.15,20.0]
[1724342886303,32.77,143.23,143.15,21.59672671]
[1724342887283,32.77,143.23,143.16,45.0]
[1724342887618,32.77,143.23,143.17,21.59650365]
[1724342888420,32.77,143.21,143.17,1.59650365]
[1724342889190,32.77,143.19,143.17,1.59650365]
[1724342889593,41.50001616,143.19,143.17,1.59650365]
[1724342889895,32.77,143.19,143.17,1.59650365]
[1724342890105,61.4063,143.22,143.17,1.59650365]
[1724342890299,61.406,143.22,143.17,1.59650365]
[1724342893018,32.77,143.18,143.17,1.59650365]
[1724342893928,6.3641,143.17,143.1,20.0]
[1724342894226,6.3641,143.17,143.07,20.0]
[1724342894227,32.77,143.16,143.09,20.0]
[1724342895007,32.77,143.16,143.08,20.0]
[1724342895398,16.3486,143.15,143.08,20.0]
[1724342897120,16.3486,143.15,143.09,45.0]
[1724342897299,16.3486,143.15,143.1,20.0]
[1724342897502,16.3486,143.15,143.08,20.0]
[1724342898626,16.3486,143.15,143.09,0.12549]
[1724342898807,16.3486,143.15,143.1,20.0]
[1724342899332,16.3486,143.15,143.11,20.0]
[1724342900017,16.3486,143.15,143.1,20.0]
[1724342901907,16.3486,143.15,143.07,20.0]
[1724342902159,16.3486,143.15,143.08,45.0]
[1724342902299,32.77,143.14,143.09,20.0]
[1724342902632,32.77,143.14,143.04,29.13940319]
[1724342902802,32.77,143.12,143.04,29.13940319]
[1724342903412,6.3637,143.11,143.04,29.13940319]
[1724342903929,32.77,143.1,143.02,27.004]
[1724342904937,34.51717952,143.1,143.02,7.004]
[1724342905308,32.77,143.1,143.02,7.004]
[1724342905506,32.77,143.1,143.01,9.13940319]
[1724342906008,15.4063,143.09,143.01,9.13940319]
[1724342906321,15.4063,143.09,143.02,45.25098]
[1724342906508,15.4063,143.09,143.03,20.0]
[1724342908470,6.3637,143.11,143.04,97.77]
[1724342908625,16.2825,143.13,143.06,52.77]
[1724342908807,16.2825,143.13,143.07,65.25098]
[1724342910929,16.2825,143.13,143.07,65.0]
[1724342911138,32.77,143.12,143.07,20.0]
[1724342911342,32.77,143.12,143.04,20.0]
[1724342911713,32.77,143.12,143.03,20.0]
[1724342913947,32.77,143.12,143.04,65.0]
[1724342914123,32.77,143.12,143.05,20.0]
[1724342914917,32.77,143.12,143.04,20.0]
[1724342915543,32.77,143.12,143.03,20.0]
[1724342916524,6.0389,143.11,143.03,20.0]
[1724342917143,6.0389,143.11,143.04,45.0]
[1724342917351,6.0389,143.11,143.05,20.0]
[1724342918851,6.0389,143.11,143.06,65.12549]
[1724342919025,6.0389,143.11,143.07,20.0]
[1724342933343,6.0389,143.11,143.08,45.0]
[1724342934174,16.2825,143.13,143.08,45.0]
[1724342934351,6.2488,143.15,143.09,40.25098]
[1724342934548,6.2488,143.15,143.1,45.0]
[1724342934867,6.2488,143.15,143.11,20.25098]
[1724342935973,6.2488,143.15,143.11,20.12549]
[1724342936174,6.2488,143.15,143.11,20.0]
[1724342937376,6.2488,143.15,143.08,20.0]
[1724342937983,6.2488,143.15,143.05,85.23567969]
[1724342938168,6.2488,143.15,143.05,36.43267969]
[1724342938169,32.77,143.14,143.05,36.43267969]
[1724342939876,32.77,143.14,143.06,45.0]
[1724342940178,32.77,143.14,143.07,20.0]
[1724342940476,6.2488,143.15,143.07,20.0]
[1724342940477,6.2488,143.15,143.07,40.0]
[1724342940771,6.2488,143.15,143.07,20.0]
[1724342941082,32.77,143.14,143.07,20.0]
[1724342941884,34.51699982,143.14,143.07,20.0]
[1724342942288,32.77,143.14,143.07,20.0]
[1724342942991,6.2488,143.15,143.07,20.0]
[1724342943182,6.2488,143.15,143.07,40.0]
[1724342943365,6.2488,143.15,143.09,20.0]
[1724342943881,6.2488,143.15,143.1,20.0]
[1724342944661,6.2488,143.15,143.09,20.0]
[1724342945664,6.2488,143.15,143.06,20.0]
[1724342945889,32.77,143.14,143.06,20.0]
[1724342946759,1.74699952,143.13,143.04,20.0]
[1724342947369,6.1775,143.11,143.03,7.28887176]
[1724342947726,6.1775,143.11,143.01,290.2448]
[1724342947895,6.1775,143.11,143.01,297.53318709]
[1724342948068,6.1775,143.11,143.03,20.0]
[1724342948391,6.1775,143.11,143.02,9.13940319]
[1724342948571,6.1775,143.11,143.03,0.12549]
[1724342948886,6.1775,143.11,143.03,0.25098]
[1724342949105,6.1775,143.11,143.03,65.0]
[1724342949679,6.1775,143.11,143.02,9.13940319]
[1724342949883,6.1775,143.11,143.01,7.28838709]
[1724342949884,15.4286,143.09,143.01,7.28838709]
[1724342950069,32.77,143.08,142.99,20.0]
[1724342950274,15.4286,143.09,143.01,20.0]
[1724342950478,32.77,143.08,143.01,20.0]
[1724342950732,32.77,143.08,142.99,9.13940319]
[1724342950733,32.77,143.08,142.99,29.13940319]
[1724342950883,15.4286,143.09,143.01,20.0]
[1724342951077,15.4286,143.09,143.02,20.0]
[1724342951273,15.4286,143.09,143.02,29.13940319]
[1724342951466,15.4286,143.09,143.03,20.0]
[1724342951670,15.4286,143.09,143.04,45.0]
[1724342951904,15.4286,143.09,143.05,20.0]
[1724342954705,6.1775,143.11,143.05,20.0]
[1724342954991,6.1775,143.11,143.05,40.0]
[1724342955210,6.1775,143.11,143.06,45.0]
[1724342955415,6.1775,143.11,143.07,20.0]
[1724342957513,6.1775,143.11,143.04,20.0]
[1724342958303,6.1775,143.11,143.05,20.0]
[1724342958511,6.1775,143.11,143.06,45.0]
[1724342958698,6.1775,143.11,143.07,20.0]
[1724342959409,6.1775,143.11,143.04,20.0]
[1724342960783,6.1775,143.11,143.05,20.0]
[1724342960986,6.1775,143.11,143.06,45.0]
[1724342961191,6.1775,143.11,143.07,20.0]
[1724342961806,6.1775,143.11,143.04,20.0]
[1724342962680,6.1775,143.11,143.05,78.15]
[1724342962881,6.1775,143.11,143.06,20.0]
[1724342963690,6.1775,143.11,143.04,20.0]
[1724342963891,6.1775,143.11,143.05,45.12549]
[1724342964089,6.1775,143.11,143.06,20.0]
[1724342965187,13.15,143.1,143.06,20.0]
[1724342965389,13.15,143.08,143.0,27.01578192]
[1724342965606,13.15,143.08,142.99,7.29501599]
[1724342965890,6.3784,143.05,142.99,7.29501599]
[1724342966097,13.15,143.04,142.98,0.5]
[1724342966486,6.3784,143.05,142.98,0.5]
[1724342966802,34.64790188,143.04,142.98,0.5]
[1724342967390,32.9,143.02,142.98,0.5]
[1724342968596,32.9,143.04,142.98,0.5]
[1724342970393,32.9,143.02,142.98,0.5]
[1724342972095,32.9,143.04,142.98,0.5]
[1724342973715,6.3784,143.05,142.98,0.5]
[1724342974034,6.3784,143.05,142.98,98.4]
[1724342974827,15.3786,143.06,142.99,20.12549]
[1724342975042,15.3786,143.06,143.0,65.12549]
[1724342978623,21.954,143.09,143.0,65.12549]
[1724342979035,21.954,143.09,143.01,0.12549]
[1724342979540,21.954,143.09,143.0,65.12549]
[1724342979767,32.9,143.08,143.0,20.0]
[1724342980042,32.9,143.08,142.98,0.5]
[1724342980043,32.9,143.06,142.98,20.5]
[1724342981158,32.9,143.06,142.98,0.5]
[1724342983036,0.12549,143.07,142.98,0.5]
[1724342983037,32.9,143.04,142.98,0.5]
[1724342984329,6.4792,143.03,142.98,0.5]
[1724342985056,34.64831109,143.02,142.98,0.5]
[1724342986534,22.0191,143.03,142.98,0.5]
[1724342987114,6.4792,143.03,142.98,0.5]
[1724342987316,15.3074,143.06,142.98,0.5]
[1724342987611,15.3074,143.06,142.98,45.5]
[1724342987828,15.3074,143.06,142.99,20.0]
[1724342988221,48.2074,143.06,142.99,20.0]
[1724342988643,15.3074,143.06,142.98,20.5]
[1724342991025,15.3074,143.06,142.99,45.12549]
[1724342991338,15.3074,143.06,143.0,20.0]
[1724342993542,6.0927,143.07,143.01,20.0]
[1724342993868,22.4356,143.1,143.02,65.0]
[1724342994142,55.3356,143.14,143.03,20.25098]
[1724342994318,55.3356,143.14,143.04,65.0]
[1724342994954,32.9,143.12,143.04,65.0]
[1724342995121,32.9,143.12,143.04,20.0]
[1724342995520,22.4356,143.14,143.05,20.0]
[1724342995720,22.4356,143.14,143.06,65.0]
[1724342999150,32.9,143.13,143.06,65.0]
[1724343000353,32.9,143.13,143.06,20.0]
[1724343000740,32.9,143.13,143.04,20.0]
[1724343001854,32.9,143.13,143.05,45.0]
[1724343002154,32.9,143.13,143.06,20.0]
[1724343002652,22.56109,143.14,143.06,20.0]
[1724343002653,22.4356,143.14,143.06,20.0]
[1724343003251,22.4356,143.14,143.07,45.0]
[1724343004447,22.4356,143.14,143.06,20.0]
[1724343005565,32.9,143.13,143.06,20.0]
[1724343007167,32.9,143.09,143.06,20.0]
[1724343007329,32.9,143.09,143.03,20.0]
[1724343010348,1.74750722,143.08,143.03,20.0]
[1724343010555,32.9,143.09,143.03,20.0]
[1724343013836,32.9,143.11,143.03,20.0]
[1724343014265,32.9,143.11,143.03,40.0]
[1724343014440,32.9,143.13,143.04,45.0]
[1724343014763,32.9,143.13,143.05,20.0]
[1724343015959,22.4356,143.14,143.05,20.0]
[1724343016161,22.4356,143.14,143.05,40.0]
[1724343016348,22.4356,143.14,143.06,45.12549]
[1724343016843,22.4356,143.14,143.07,20.0]
[1724343018238,32.9,143.13,143.07,20.0]
[1724343018552,32.9,143.13,143.04,20.0]
[1724343018759,32.9,143.13,143.05,45.0]
[1724343019069,34.64714596,143.13,143.06,20.0]
[1724343019566,32.9,143.11,143.06,20.0]
[1724343019865,32.9,143.11,143.03,20.12549]
[1724343020043,6.9867,143.13,143.02,15.7766]
[1724343020044,32.9,143.09,143.02,15.7766]
[1724343021231,32.9,143.09,143.03,20.0]
[1724343021438,32.9,143.09,143.02,15.7766]
[1724343022069,32.9,143.07,143.0,16.44320548]
[1724343022239,32.9,143.07,143.0,9.13940319]
[1724343022555,1.74776864,143.06,143.0,9.13940319]
[1724343022742,55.6691,143.07,142.99,16.1254]
[1724343022947,55.6691,143.07,142.99,36.1254]
[1724343023147,6.6036,143.07,142.99,45.26480319]
[1724343023359,32.9,143.09,142.99,45.26480319]
[1724343023560,32.9,143.09,143.0,9.13940319]
[1724343024069,22.5958,143.1,143.01,85.0]
[1724343024271,22.5958,143.1,143.02,9.13940319]
[1724343024575,22.5958,143.1,143.03,20.0]
[1724343025280,22.5958,143.1,143.02,20.0]
[1724343026637,32.9,143.09,143.02,20.0]
[1724343027267,32.9,143.07,143.02,20.0]
[1724343027452,1.74770447,143.06,143.0,20.0]
[1724343027659,32.9,143.07,143.0,20.0]
[1724343029172,32.9,143.07,143.05,0.22103]
[1724343032668,32.9,143.09,143.05,0.22103]
[1724343033841,32.9,143.07,143.05,0.22103]
[1724343034776,1.74787677,143.06,143.05,0.22103]
[1724343035046,1.74787668,143.06,143.05,0.22103]
[1724343036074,34.64792561,143.07,143.05,0.22103]
[1724343036249,34.6480034,143.07,142.98,9.63940319]
[1724343036444,32.9,143.03,142.98,0.5]
[1724343036651,34.64822804,143.03,142.98,0.5]
[1724343036845,32.9,143.03,142.98,0.5]
[1724343037071,1.74834641,143.02,142.98,0.5]
[1724343037469,32.9,143.01,142.98,0.5]
[1724343037792,1.74850026,143.0,142.98,0.5]
[1724343037977,32.9,143.01,142.98,0.5]
[1724343040068,32.9,143.03,142.98,0.5]
[1724343040379,23.1465,143.04,142.98,0.5]
[1724343042290,32.9,143.03,142.98,0.5]
[1724343042497,23.1465,143.04,142.98,0.5]
[1724343042864,6.4923,143.04,142.98,0.5]
[1724343043073,6.4923,143.04,142.98,20.5]
[1724343043389,32.9,143.03,142.98,20.5]
[1724343043888,32.9,143.05,142.98,20.5]
[1724343044358,32.9,143.07,142.98,20.5]
[1724343047666,32.9,143.05,142.98,20.5]
[1724343048504,1.74813868,143.04,142.98,20.5]
[1724343048673,32.9,143.05,142.98,20.5]
[1724343051306,34.64815133,143.07,142.98,20.5]
[1724343051307,32.9,143.03,142.98,20.5]
[1724343052371,1.74837983,143.02,142.98,0.5]
[1724343052882,32.9,143.01,142.98,0.5]
[1724343053209,1.74862624,143.0,142.98,0.5]
[1724343055574,32.9,143.01,142.98,0.5]
[1724343055776,1.74868208,143.0,142.98,0.5]
[1724343056300,32.9,142.99,142.98,0.5]
[1724343061205,32.9,143.01,142.98,0.5]
[1724343063688,32.9,142.99,142.98,0.5]
[1724343065906,33.02549,142.99,142.98,0.5]
[1724343066901,32.9,142.99,142.98,0.5]
[1724343071515,33.02549,142.99,142.98,0.5]
[1724343071697,86.76789314,142.99,142.91,20.0]
[1724343071908,32.9,142.95,142.91,20.0]
[1724343076402,32.9,142.97,142.91,20.0]
[1724343077032,78.02549,142.99,142.91,20.0]
[1724343077207,32.9,142.99,142.91,20.0]
[1724343078804,22.5485,143.02,142.92,45.0]
[1724343079029,55.4485,143.02,142.93,20.0]
[1724343079628,32.9,143.0,142.93,20.0]
[1724343079801,32.9,142.98,142.93,20.0]
[1724343080004,1.74893665,142.97,142.91,20.0]
[1724343080435,32.9,142.98,142.91,20.0]
[1724343080814,32.9,142.96,142.91,20.0]
[1724343081014,32.9,142.98,142.91,20.0]
[1724343083143,0.12549,142.99,142.91,20.0]
[1724343083144,32.9,142.96,142.91,20.0]
[1724343084235,32.9,142.98,142.91,20.0]
[1724343087939,32.9,143.0,142.91,20.0]
[1724343088551,13.17,143.0,142.92,45.12549]
[1724343088859,13.17,143.0,142.93,20.0]
[1724343091142,19.2484,143.02,142.93,33.17]
[1724343091354,7.32985565,143.07,142.96,20.0]
[1724343091666,13.17,143.05,142.97,20.0]
[1724343092074,13.17,143.03,142.96,20.0]
[1724343093469,13.17,143.03,142.95,20.0]
[1724343094047,13.17,143.01,142.95,20.0]
[1724343094458,6.9911,143.04,142.95,20.0]
[1724343094459,13.17,142.99,142.95,20.0]
[1724343095857,13.17,143.01,142.95,20.0]
[1724343096062,13.17,142.97,142.95,20.0]
[1724343096455,32.92,143.0,142.95,20.0]
[1724343097457,33.04549,143.02,142.95,20.0]
[1724343099282,32.92,143.02,142.95,20.0]
[1724343103786,32.92,143.0,142.95,20.0]
[1724343106787,32.92,142.98,142.9,30.51920319]
[1724343106968,32.92,142.98,142.91,20.0]
[1724343109258,32.92,143.0,142.91,20.0]
[1724343113151,32.92,143.0,142.91,40.0]
[1724343113389,0.12549,143.01,142.91,40.0]
[1724343113688,32.92,143.02,142.92,45.0]
[1724343113859,32.92,143.02,142.93,20.0]
[1724343114282,32.92,143.02,142.94,15.9069]
[1724343114454,32.92,143.02,142.95,20.0]
[1724343115490,32.92,143.0,142.95,20.0]
[1724343116594,13.17,142.98,142.94,15.9069]
[1724343116887,13.17,142.96,142.94,15.9069]
[1724343117768,13.17,142.98,142.94,15.9069]
[1724343118556,32.93,142.99,142.94,15.9069]
[1724343122062,1.74896851,142.98,142.94,15.9069]
[1724343122263,32.93,142.99,142.91,16.0701]
[1724343122476,32.93,142.99,142.92,20.0]
[1724343122477,32.93,142.97,142.92,20.0]
[1724343123079,1.87470694,142.96,142.92,20.0]
[1724343124095,32.93,142.95,142.91,16.0701]
[1724343124264,1.74936326,142.94,142.91,16.0701]
[1724343124664,32.93,142.95,142.91,16.0701]
[1724343126575,13.4993,142.98,142.91,16.0701]
[1724343126576,32.93,142.97,142.91,16.0701]
[1724343128767,32.93,142.95,142.91,16.0701]
[1724343129513,32.93,142.93,142.87,22.2779]
[1724343129812,32.93,142.93,142.88,20.0]
[1724343135019,1.74952806,142.92,142.88,20.0]
[1724343135180,32.93,142.93,142.88,20.0]
[1724343137220,32.93,142.91,142.87,15.8785]
[1724343137397,1.74980767,142.9,142.87,15.8785]
[1724343138014,32.93,142.91,142.87,15.8785]
[1724343139802,32.93,142.93,142.87,15.8785]
[1724343140632,0.12549,142.94,142.87,15.8785]
[1724343140633,13.18,142.94,142.87,15.8785]
[1724343141136,13.18,142.96,142.88,20.0]
[1724343141804,13.18,142.94,142.88,20.0]
[1724343143500,13.18,142.92,142.88,20.0]
[1724343144530,32.96,142.93,142.88,20.0]
[1724343145309,32.96,142.95,142.88,20.0]
[1724343148700,32.96,142.93,142.88,20.0]
[1724343149128,1.74971032,142.92,142.88,20.0]
[1724343149620,32.96,142.91,142.87,15.8785]
[1724343151501,33.08549,142.94,142.87,15.8785]
[1724343153509,0.12549,142.93,142.87,15.8785]
[1724343153906,32.96,142.94,142.87,15.8785]
[1724343157733,6.5053,142.98,142.88,26.2811]
[1724343157901,32.96,142.98,142.88,26.2811]
[1724343158104,32.96,142.98,142.88,35.42050319]
[1724343159852,32.96,142.96,142.88,26.2811]
[1724343160048,32.96,142.94,142.88,26.2811]
[1724343161335,32.96,142.92,142.88,26.2811]
[1724343161834,32.96,142.94,142.88,26.2811]
[1724343162432,32.96,142.96,142.88,26.2811]
[1724343163030,32.96,142.98,142.88,35.42050319]
[1724343163229,32.96,142.98,142.89,45.0]
[1724343163538,32.96,142.98,142.9,20.0]
[1724343165128,32.96,142.96,142.9,20.0]
[1724343165430,32.96,142.96,142.89,20.0]
[1724343166925,0.25098,142.97,142.89,20.0]
[1724343167131,32.96,142.98,142.89,20.0]
[1724343167311,32.96,142.98,142.9,15.1582]
[1724343167733,32.96,143.0,142.91,20.0]
[1724343168505,0.12549,142.99,142.91,20.0]
[1724343171028,32.96,143.0,142.91,20.0]
[1724343171218,32.96,143.02,142.91,40.0]
[1724343171423,32.96,143.02,142.92,16.4271]
[1724343171707,32.96,143.02,142.93,26.6131]
[1724343172440,0.12549,143.01,142.93,26.6131]
[1724343173708,32.96,143.02,142.93,26.6131]
[1724343177217,32.96,143.0,142.93,26.6131]
[1724343177439,32.96,142.98,142.93,26.6131]
[1724343178949,32.96,143.02,142.93,26.6131]
[1724343182544,4.00196969,143.01,142.93,46.6131]
[1724343182749,4.00196969,143.0,142.94,45.0]
[1724343183049,32.96,143.02,142.95,20.0]
[1724343183351,4.00170042,143.01,142.96,15.7375]
[1724343183649,32.96,143.04,142.96,15.7375]
[1724343183829,4.00167229,143.03,142.96,15.7375]
[1724343184030,4.00167229,143.02,142.96,15.7375]
[1724343184219,32.96,143.06,142.96,15.7375]
[1724343184220,32.96,143.06,142.97,20.0]
[1724343184423,3.99933208,143.05,142.97,20.0]
[1724343184624,3.99933208,143.04,142.98,6.5537]
[1724343184845,32.96,143.06,142.99,20.0]
[1724343185640,32.96,143.08,143.0,16.3167]
[1724343185842,3.99674482,143.07,143.0,16.3167]
[1724343186050,32.96,143.08,143.0,16.3167]
[1724343186744,32.96,143.1,143.01,20.0]
[1724343186930,3.99604384,143.09,143.0,16.3167]
[1724343187135,32.96,143.08,143.01,20.0]
[1724343187330,3.9963952,143.07,143.01,20.0]
[1724343187536,32.96,143.08,143.01,20.0]
[1724343190553,32.96,143.06,143.01,20.0]
[1724343191740,32.96,143.08,143.01,20.0]
[1724343194460,32.96,143.06,143.01,20.0]
[1724343194634,1.74785532,143.05,143.01,20.0]
[1724343195024,32.96,143.06,143.01,20.0]
[1724343195232,32.96,143.08,143.01,20.0]
[1724343195924,32.96,143.02,143.0,16.3167]
[1724343196144,1.74830479,143.01,142.97,16.0068]
[1724343196460,32.96,143.02,142.97,16.0068]
[1724343196661,32.96,143.04,142.97,16.0068]
[1724343200468,34.70842124,143.04,142.97,16.0068]
[1724343200651,32.96,143.02,142.97,16.0068]
[1724343202361,32.96,143.02,143.0,0.24128]
[1724343203059,1.748431,143.01,143.0,0.24128]
[1724343203246,1.748431,143.01,142.93,16.5862]
[1724343203571,32.96,142.98,142.93,16.5862]
[1724343203746,1.74881922,142.97,142.93,16.5862]
[1724343205679,32.96,142.96,142.93,16.5862]
[1724343206476,32.96,142.98,142.93,16.5862]
[1724343210698,32.96,142.96,142.89,15.6884]
[1724343210981,32.96,142.96,142.9,20.0]
[1724343211598,32.96,142.98,142.9,20.0]
[1724343214605,32.96,142.98,142.9,40.0]
[1724343214901,32.96,142.98,142.91,45.0]
[1724343215209,32.96,142.98,142.92,20.0]
[1724343218595,32.96,142.98,142.9,20.0]
[1724343222393,32.96,142.96,142.9,20.0]
[1724343222618,13.18,142.94,142.9,20.0]
[1724343223100,13.18,142.92,142.9,20.0]
[1724343223417,13.18,142.92,142.89,15.6884]
[1724343224501,32.95,142.93,142.89,15.6884]
[1724343227517,32.95,142.93,142.86,25.80010319]
[1724343227815,32.95,142.93,142.87,20.0]
[1724343233013,32.95,142.95,142.87,29.13940319]
[1724343235230,32.95,142.97,142.88,74.39037244]
[1724343235535,32.95,142.97,142.89,20.0]
[1724343238302,4.00914174,142.96,142.89,20.0]
[1724343238512,32.95,142.97,142.89,20.0]
[1724343238696,32.95,142.95,142.89,20.0]
[1724343238902,32.95,142.95,142.87,20.0]
[1724343241720,32.95,142.95,142.87,29.13939244]
[1724343243116,5.76047749,142.94,142.87,29.13939244]
[1724343243321,1.74920333,142.94,142.87,29.13939244]
[1724343243524,1.74920333,142.94,142.87,20.0]
[1724343244420,13.18,142.93,142.87,20.0]
[1724343245532,13.18,142.91,142.87,20.0]